[Event "December 12 Early 2023"]
[Site "https://www.chess.com"]
[Date "2023.12.12"]
[Round "11"]
[White "Begunov, Konstantin"]
[Black "Espinoza Villanueva, Rodrigo"]
[Result "1-0"]
[Board "88"]
[TimeControl "180+1"]
[WhiteFideId "4118510"]
[BlackFideId "5140188"]
[WhiteElo "2418"]
[BlackElo "2575"]
[WhiteTeam "RUS"]
[BlackTeam "MEX"]
[WhiteClock "0:00:02"]
[BlackClock "0:00:00"]

1. d4 {[%clk 0:03:00]}  Nf6 {[%clk 0:02:59]} 2. c4 {[%clk 0:03:00]}  g6 {[%clk 0:02:59]} 3. f3 {[%clk 0:03:00]}  Bg7 {[%clk 0:02:59]} 4. e4 {[%clk 0:03:00]}  d6 {[%clk 0:02:58]} 5. Nc3 {[%clk 0:03:00]}  O-O {[%clk 0:02:58]} 6. Be3 {[%clk 0:03:00]}  a6 {[%clk 0:02:57]} 7. Qd2 {[%clk 0:03:00]}  c6 {[%clk 0:02:57]} 8. Bd3 {[%clk 0:03:00]}  b5 {[%clk 0:02:57]} 9. b3 {[%clk 0:03:00]}  Nbd7 {[%clk 0:02:55]} 10. Nge2 {[%clk 0:02:59]}  e5 {[%clk 0:02:55]} 11. d5 {[%clk 0:02:59]}  b4 {[%clk 0:02:53]} 12. Na4 {[%clk 0:02:58]}  c5 {[%clk 0:02:48]} 13. O-O {[%clk 0:02:56]}  Nh5 {[%clk 0:02:46]} 14. a3 {[%clk 0:02:55]}  a5 {[%clk 0:02:44]} 15. axb4 {[%clk 0:02:44]}  axb4 {[%clk 0:02:45]} 16. Nb2 {[%clk 0:02:44]}  Bb7 {[%clk 0:02:41]} 17. g4 {[%clk 0:02:43]}  Nf4 {[%clk 0:02:39]} 18. Nxf4 {[%clk 0:02:41]}  exf4 {[%clk 0:02:40]} 19. Bxf4 {[%clk 0:02:41]}  Ne5 {[%clk 0:02:27]} 20. Rxa8 {[%clk 0:02:39]}  Qxa8 {[%clk 0:02:28]} 21. Na4 {[%clk 0:02:35]}  Qa5 {[%clk 0:02:23]} 22. Be2 {[%clk 0:02:32]}  Ra8 {[%clk 0:02:20]} 23. Bh6 {[%clk 0:02:27]}  Bxh6 {[%clk 0:02:08]} 24. Qxh6 {[%clk 0:02:26]}  Qd8 {[%clk 0:02:09]} 25. f4 {[%clk 0:02:19]}  Nd7 {[%clk 0:02:09]} 26. g5 {[%clk 0:02:11]}  Qe7 {[%clk 0:02:06]} 27. Bd3 {[%clk 0:02:06]}  Nf8 {[%clk 0:02:01]} 28. h4 {[%clk 0:01:58]}  Ra6 {[%clk 0:01:39]} 29. h5 {[%clk 0:01:57]}  Bc8 {[%clk 0:01:36]} 30. hxg6 {[%clk 0:01:52]}  fxg6 {[%clk 0:01:35]} 31. e5 {[%clk 0:01:22]}  Bd7 {[%clk 0:01:28]} 32. e6 {[%clk 0:01:13]}  Bxa4 {[%clk 0:01:24]} 33. bxa4 {[%clk 0:01:14]}  Ra7 {[%clk 0:01:18]} 34. f5 {[%clk 0:01:13]}  gxf5 {[%clk 0:01:16]} 35. Rxf5 {[%clk 0:01:10]}  Qg7 {[%clk 0:01:13]} 36. Qf6 {[%clk 0:00:57]}  Re7 {[%clk 0:01:07]} 37. Bc2 {[%clk 0:00:50]}  Ng6 {[%clk 0:01:00]} 38. Rf3 {[%clk 0:00:43]}  Ne5 {[%clk 0:00:57]} 39. Rh3 {[%clk 0:00:43]}  Ng6 {[%clk 0:00:47]} 40. a5 {[%clk 0:00:41]}  Re8 {[%clk 0:00:45]} 41. Rh6 {[%clk 0:00:39]}  Rf8 {[%clk 0:00:43]} 42. Qxg7+ {[%clk 0:00:20]}  Kxg7 {[%clk 0:00:44]} 43. Bxg6 {[%clk 0:00:19]}  hxg6 {[%clk 0:00:43]} 44. Rh2 {[%clk 0:00:19]}  Ra8 {[%clk 0:00:40]} 45. Re2 {[%clk 0:00:18]}  Kf8 {[%clk 0:00:38]} 46. Rf2+ {[%clk 0:00:18]}  Ke8 {[%clk 0:00:37]} 47. Rf7 {[%clk 0:00:18]}  Rxa5 {[%clk 0:00:35]} 48. Rb7 {[%clk 0:00:19]}  Ra3 {[%clk 0:00:31]} 49. Rb6 {[%clk 0:00:19]}  Rc3 {[%clk 0:00:27]} 50. Rxd6 {[%clk 0:00:18]}  Rxc4 {[%clk 0:00:27]} 51. Rb6 {[%clk 0:00:18]}  Rg4+ {[%clk 0:00:20]} 52. Kf2 {[%clk 0:00:18]}  Re4 {[%clk 0:00:18]} 53. Kf3 {[%clk 0:00:17]}  Re5 {[%clk 0:00:17]} 54. Kf4 {[%clk 0:00:17]}  Rxd5 {[%clk 0:00:16]} 55. Ke4 {[%clk 0:00:15]}  Rxg5 {[%clk 0:00:15]} 56. Rb7 {[%clk 0:00:15]}  Rf5 {[%clk 0:00:09]} 57. Rc7 {[%clk 0:00:15]}  c4 {[%clk 0:00:07]} 58. Rxc4 {[%clk 0:00:14]}  Rb5 {[%clk 0:00:06]} 59. Rc2 {[%clk 0:00:06]}  Ke7 {[%clk 0:00:02]} 60. Rg2 {[%clk 0:00:02]}  g5 {[%clk 0:00:01]} 61. Kd4 {[%clk 0:00:01]}  Kxe6 {[%clk 0:00:00]} 62. Kc4 {[%clk 0:00:02]} 1-0

[Event "December 12 Early 2023"]
[Site "https://www.chess.com"]
[Date "2023.12.12"]
[Round "11"]
[White "Skaric, Djuro"]
[Black "Asish Panda"]
[Result "0-1"]
[Board "90"]
[TimeControl "180+1"]
[WhiteFideId "934569"]
[BlackFideId "45012458"]
[WhiteElo "2398"]
[BlackElo "2532"]
[WhiteTeam "SRB"]
[BlackTeam "IND"]
[WhiteClock "0:01:30"]
[BlackClock "0:00:56"]

1. g3 {[%clk 0:03:00]}  d5 {[%clk 0:02:59]} 2. Bg2 {[%clk 0:02:55]}  Nf6 {[%clk 0:02:58]} 3. d3 {[%clk 0:02:56]}  e5 {[%clk 0:02:57]} 4. Nf3 {[%clk 0:02:57]}  Bd6 {[%clk 0:02:57]} 5. O-O {[%clk 0:02:58]}  O-O {[%clk 0:02:57]} 6. Nc3 {[%clk 0:02:58]}  c5 {[%clk 0:02:57]} 7. e4 {[%clk 0:02:56]}  Be6 {[%clk 0:02:53]} 8. Nd2 {[%clk 0:02:52]}  d4 {[%clk 0:02:52]} 9. Ne2 {[%clk 0:02:52]}  b5 {[%clk 0:02:50]} 10. h3 {[%clk 0:02:52]}  Nfd7 {[%clk 0:02:49]} 11. f4 {[%clk 0:02:52]}  f6 {[%clk 0:02:49]} 12. f5 {[%clk 0:02:52]}  Bf7 {[%clk 0:02:49]} 13. g4 {[%clk 0:02:53]}  a5 {[%clk 0:02:48]} 14. Rf2 {[%clk 0:02:53]}  c4 {[%clk 0:02:47]} 15. Bf1 {[%clk 0:02:53]}  Nc6 {[%clk 0:02:47]} 16. Rg2 {[%clk 0:02:53]}  cxd3 {[%clk 0:02:45]} 17. cxd3 {[%clk 0:02:52]}  Nb4 {[%clk 0:02:46]} 18. Nf3 {[%clk 0:02:49]}  Bxa2 {[%clk 0:02:38]} 19. Rxa2 {[%clk 0:02:44]}  Nxa2 {[%clk 0:02:35]} 20. Qb3+ {[%clk 0:02:44]}  Kh8 {[%clk 0:02:35]} 21. Qxa2 {[%clk 0:02:45]}  Nc5 {[%clk 0:02:35]} 22. Ng3 {[%clk 0:02:38]}  a4 {[%clk 0:02:33]} 23. Qd5 {[%clk 0:02:35]}  Rc8 {[%clk 0:02:31]} 24. g5 {[%clk 0:02:34]}  Be7 {[%clk 0:02:27]} 25. gxf6 {[%clk 0:02:16]}  gxf6 {[%clk 0:02:09]} 26. Bd2 {[%clk 0:02:12]}  Qxd5 {[%clk 0:02:02]} 27. exd5 {[%clk 0:02:12]}  Nb3 {[%clk 0:02:02]} 28. Bh6 {[%clk 0:02:10]}  Rg8 {[%clk 0:02:01]} 29. Ne4 {[%clk 0:02:10]}  Rxg2+ {[%clk 0:01:57]} 30. Kxg2 {[%clk 0:02:10]}  Rc2+ {[%clk 0:01:56]} 31. Kg3 {[%clk 0:02:10]}  Rxb2 {[%clk 0:01:54]} 32. d6 {[%clk 0:02:10]}  Bd8 {[%clk 0:01:53]} 33. Nfg5 {[%clk 0:02:03]}  fxg5 {[%clk 0:01:42]} 34. f6 {[%clk 0:02:03]}  Kg8 {[%clk 0:01:24]} 35. Bg2 {[%clk 0:01:38]}  Rxg2+ {[%clk 0:01:01]} 36. Kxg2 {[%clk 0:01:38]}  a3 {[%clk 0:01:02]} 37. Nxg5 {[%clk 0:01:37]}  Bxf6 {[%clk 0:01:00]} 38. Ne4 {[%clk 0:01:36]}  Bd8 {[%clk 0:00:57]} 39. Bg5 {[%clk 0:01:30]}  Bxg5 {[%clk 0:00:56]} 0-1

[Event "December 12 Early 2023"]
[Site "https://www.chess.com"]
[Date "2023.12.12"]
[Round "11"]
[White "Tuleyeva-Aketayeva, Dana"]
[Black "Turzo, Attila"]
[Result "0-1"]
[Board "92"]
[TimeControl "180+1"]
[WhiteFideId "13701932"]
[BlackFideId "704954"]
[WhiteElo "2331"]
[BlackElo "2476"]
[WhiteTeam "KAZ"]
[BlackTeam "HUN"]
[WhiteClock "0:00:00"]
[BlackClock "0:00:09"]

1. d4 {[%clk 0:03:00]}  d5 {[%clk 0:02:58]} 2. Nf3 {[%clk 0:03:01]}  c6 {[%clk 0:02:59]} 3. g3 {[%clk 0:03:01]}  Bf5 {[%clk 0:02:59]} 4. Bg2 {[%clk 0:03:02]}  e6 {[%clk 0:03:00]} 5. O-O {[%clk 0:03:02]}  Nf6 {[%clk 0:02:59]} 6. c4 {[%clk 0:03:02]}  Nbd7 {[%clk 0:02:58]} 7. Nc3 {[%clk 0:03:03]}  h6 {[%clk 0:02:59]} 8. Nd2 {[%clk 0:03:03]}  Bb4 {[%clk 0:02:57]} 9. e4 {[%clk 0:02:58]}  dxe4 {[%clk 0:02:51]} 10. Ndxe4 {[%clk 0:02:54]}  O-O {[%clk 0:02:47]} 11. Qb3 {[%clk 0:02:51]}  Bxc3 {[%clk 0:02:38]} 12. Nxc3 {[%clk 0:02:48]}  Qb6 {[%clk 0:02:37]} 13. d5 {[%clk 0:02:19]}  cxd5 {[%clk 0:02:14]} 14. cxd5 {[%clk 0:02:18]}  exd5 {[%clk 0:02:07]} 15. Nxd5 {[%clk 0:02:15]}  Nxd5 {[%clk 0:02:07]} 16. Bxd5 {[%clk 0:02:10]}  Nc5 {[%clk 0:01:50]} 17. Qxb6 {[%clk 0:02:07]}  axb6 {[%clk 0:01:50]} 18. Be3 {[%clk 0:01:38]}  Rfd8 {[%clk 0:01:21]} 19. Bg2 {[%clk 0:01:21]}  Rd7 {[%clk 0:01:11]} 20. a3 {[%clk 0:01:12]}  Rad8 {[%clk 0:00:54]} 21. b4 {[%clk 0:00:40]}  Nb3 {[%clk 0:00:43]} 22. Bxb6 {[%clk 0:00:20]}  Nxa1 {[%clk 0:00:39]} 23. Bxd8 {[%clk 0:00:20]}  Nc2 {[%clk 0:00:37]} 24. Bb6 {[%clk 0:00:17]}  Nxa3 {[%clk 0:00:37]} 25. Rc1 {[%clk 0:00:15]}  Nc2 {[%clk 0:00:29]} 26. h3 {[%clk 0:00:14]}  Nxb4 {[%clk 0:00:26]} 27. g4 {[%clk 0:00:14]}  Bc2 {[%clk 0:00:18]} 28. Kh2 {[%clk 0:00:12]}  Rd1 {[%clk 0:00:14]} 29. Rxd1 {[%clk 0:00:12]}  Bxd1 {[%clk 0:00:15]} 30. Bxb7 {[%clk 0:00:12]}  Bb3 {[%clk 0:00:14]} 31. Bg2 {[%clk 0:00:12]}  Nd3 {[%clk 0:00:13]} 32. Be3 {[%clk 0:00:12]}  g5 {[%clk 0:00:12]} 33. Kg1 {[%clk 0:00:11]}  Kg7 {[%clk 0:00:11]} 34. Kh2 {[%clk 0:00:11]}  Bc4 {[%clk 0:00:10]} 35. Kg1 {[%clk 0:00:10]}  f6 {[%clk 0:00:10]} 36. Kh2 {[%clk 0:00:10]}  Ne5 {[%clk 0:00:10]} 37. Kg3 {[%clk 0:00:10]}  Kg6 {[%clk 0:00:10]} 38. Be4+ {[%clk 0:00:10]}  Kg7 {[%clk 0:00:10]} 39. f4 {[%clk 0:00:10]}  Nf7 {[%clk 0:00:09]} 40. f5 {[%clk 0:00:08]}  Nd6 {[%clk 0:00:08]} 41. Bf3 {[%clk 0:00:08]}  Bf7 {[%clk 0:00:07]} 42. Kg2 {[%clk 0:00:06]}  Nc4 {[%clk 0:00:07]} 43. Bf2 {[%clk 0:00:07]}  Ne5 {[%clk 0:00:07]} 44. Kg3 {[%clk 0:00:07]}  Bc4 {[%clk 0:00:06]} 45. Bd4 {[%clk 0:00:06]}  Kf7 {[%clk 0:00:06]} 46. Bf2 {[%clk 0:00:03]}  Kg7 {[%clk 0:00:03]} 47. Bd4 {[%clk 0:00:03]}  Bd3 {[%clk 0:00:04]} 48. Bf2 {[%clk 0:00:03]}  Bf1 {[%clk 0:00:04]} 49. Bg2 {[%clk 0:00:02]}  Bxg2 {[%clk 0:00:02]} 50. Kxg2 {[%clk 0:00:02]}  h5 {[%clk 0:00:03]} 51. Bd4 {[%clk 0:00:02]}  hxg4 {[%clk 0:00:01]} 52. Bxe5 {[%clk 0:00:02]}  gxh3+ {[%clk 0:00:02]} 53. Kxh3 {[%clk 0:00:01]}  fxe5 {[%clk 0:00:02]} 54. Kg3 {[%clk 0:00:02]}  Kf6 {[%clk 0:00:03]} 55. Kg4 {[%clk 0:00:02]}  e4 {[%clk 0:00:03]} 56. Kg3 {[%clk 0:00:01]}  Kxf5 {[%clk 0:00:03]} 57. Kf2 {[%clk 0:00:01]}  Kf4 {[%clk 0:00:04]} 58. Kg2 {[%clk 0:00:01]}  g4 {[%clk 0:00:05]} 59. Kf2 {[%clk 0:00:01]}  g3+ {[%clk 0:00:06]} 60. Kg2 {[%clk 0:00:02]}  Kg4 {[%clk 0:00:06]} 61. Kg1 {[%clk 0:00:02]}  Kf3 {[%clk 0:00:07]} 62. Kh1 {[%clk 0:00:02]}  e3 {[%clk 0:00:08]} 63. Kg1 {[%clk 0:00:00]}  e2 {[%clk 0:00:09]} 0-1

[Event "December 12 Early 2023"]
[Site "https://www.chess.com"]
[Date "2023.12.12"]
[Round "11"]
[White "IranianCheetah"]
[Black "Shukhman, Anna"]
[Result "0-1"]
[Board "93"]
[TimeControl "180+1"]
[BlackFideId "54180058"]
[WhiteElo "2350"]
[BlackElo "2475"]
[BlackTeam "FID"]
[WhiteClock "0:00:03"]
[BlackClock "0:00:16"]

1. e4 {[%clk 0:03:00]}  Nf6 {[%clk 0:03:00]} 2. e5 {[%clk 0:03:01]}  Nd5 {[%clk 0:03:00]} 3. d4 {[%clk 0:03:00]}  d6 {[%clk 0:03:01]} 4. c4 {[%clk 0:03:01]}  Nb6 {[%clk 0:03:01]} 5. f4 {[%clk 0:03:01]}  dxe5 {[%clk 0:02:59]} 6. fxe5 {[%clk 0:03:02]}  Bf5 {[%clk 0:02:59]} 7. Nc3 {[%clk 0:03:00]}  e6 {[%clk 0:02:58]} 8. Be3 {[%clk 0:03:00]}  Nc6 {[%clk 0:02:55]} 9. Nf3 {[%clk 0:02:56]}  Bb4 {[%clk 0:02:53]} 10. Be2 {[%clk 0:02:48]}  O-O {[%clk 0:02:49]} 11. O-O {[%clk 0:02:48]}  Bxc3 {[%clk 0:02:27]} 12. bxc3 {[%clk 0:02:48]}  Na5 {[%clk 0:02:28]} 13. Nd2 {[%clk 0:02:43]}  c5 {[%clk 0:02:25]} 14. Rxf5 {[%clk 0:02:29]}  exf5 {[%clk 0:02:24]} 15. d5 {[%clk 0:02:30]}  Re8 {[%clk 0:01:56]} 16. Bf4 {[%clk 0:01:42]}  g5 {[%clk 0:01:51]} 17. Bg3 {[%clk 0:01:36]}  f4 {[%clk 0:01:51]} 18. Bf2 {[%clk 0:01:36]}  Rxe5 {[%clk 0:01:51]} 19. Bxc5 {[%clk 0:01:30]}  Qe8 {[%clk 0:01:23]} 20. Bd3 {[%clk 0:01:17]}  Nxd5 {[%clk 0:01:16]} 21. cxd5 {[%clk 0:01:15]}  Rxd5 {[%clk 0:01:15]} 22. Ne4 {[%clk 0:00:41]}  Qe5 {[%clk 0:01:04]} 23. Bd4 {[%clk 0:00:22]}  Rxd4 {[%clk 0:01:03]} 24. cxd4 {[%clk 0:00:22]}  Qxd4+ {[%clk 0:01:04]} 25. Nf2 {[%clk 0:00:19]}  Rd8 {[%clk 0:01:03]} 26. Rb1 {[%clk 0:00:16]}  h6 {[%clk 0:00:50]} 27. Qh5 {[%clk 0:00:12]}  Kg7 {[%clk 0:00:50]} 28. h4 {[%clk 0:00:12]}  Rd5 {[%clk 0:00:47]} 29. hxg5 {[%clk 0:00:11]}  Rxg5 {[%clk 0:00:45]} 30. Qh4 {[%clk 0:00:10]}  Nc6 {[%clk 0:00:33]} 31. Rxb7 {[%clk 0:00:09]}  Ne5 {[%clk 0:00:30]} 32. Be4 {[%clk 0:00:08]}  f3 {[%clk 0:00:21]} 33. Rb1 {[%clk 0:00:05]}  Rxg2+ {[%clk 0:00:18]} 34. Kh1 {[%clk 0:00:06]}  Qxf2 {[%clk 0:00:17]} 35. Rc1 {[%clk 0:00:03]}  Qxh4# {[%clk 0:00:16]} 0-1

[Event "December 12 Early 2023"]
[Site "https://www.chess.com"]
[Date "2023.12.12"]
[Round "11"]
[White "Tay, Junior"]
[Black "Bach Ngoc Thuy Duong"]
[Result "0-1"]
[Board "97"]
[TimeControl "180+1"]
[WhiteFideId "5800439"]
[BlackFideId "12408956"]
[WhiteElo "2487"]
[BlackElo "2395"]
[WhiteTeam "SGP"]
[BlackTeam "VIE"]
[WhiteClock "0:00:12"]
[BlackClock "0:00:16"]

1. e4 {[%clk 0:02:56]}  c5 {[%clk 0:02:59]} 2. Nf3 {[%clk 0:02:56]}  d6 {[%clk 0:02:59]} 3. d4 {[%clk 0:02:56]}  cxd4 {[%clk 0:03:00]} 4. Qxd4 {[%clk 0:02:57]}  a6 {[%clk 0:03:00]} 5. Be3 {[%clk 0:02:56]}  Nc6 {[%clk 0:02:57]} 6. Qb6 {[%clk 0:02:56]}  Qxb6 {[%clk 0:02:54]} 7. Bxb6 {[%clk 0:02:57]}  Nf6 {[%clk 0:02:54]} 8. Nc3 {[%clk 0:02:57]}  Bg4 {[%clk 0:02:52]} 9. O-O-O {[%clk 0:02:57]}  Rc8 {[%clk 0:02:43]} 10. Kb1 {[%clk 0:02:55]}  g6 {[%clk 0:02:42]} 11. h3 {[%clk 0:02:40]}  Bxf3 {[%clk 0:02:34]} 12. gxf3 {[%clk 0:02:41]}  Bg7 {[%clk 0:02:34]} 13. f4 {[%clk 0:02:34]}  Nd7 {[%clk 0:02:33]} 14. Be3 {[%clk 0:02:26]}  Bxc3 {[%clk 0:02:26]} 15. bxc3 {[%clk 0:02:27]}  Na5 {[%clk 0:02:23]} 16. e5 {[%clk 0:02:09]}  dxe5 {[%clk 0:02:12]} 17. f5 {[%clk 0:02:08]}  gxf5 {[%clk 0:02:03]} 18. Bg2 {[%clk 0:02:07]}  Nc4 {[%clk 0:01:45]} 19. Bc1 {[%clk 0:01:59]}  Rc7 {[%clk 0:01:44]} 20. Bd5 {[%clk 0:01:48]}  Ndb6 {[%clk 0:01:43]} 21. Rhg1 {[%clk 0:01:41]}  Nxd5 {[%clk 0:01:40]} 22. Rxd5 {[%clk 0:01:40]}  e6 {[%clk 0:01:38]} 23. Rd3 {[%clk 0:01:34]}  f4 {[%clk 0:01:38]} 24. Rgd1 {[%clk 0:01:15]}  Ke7 {[%clk 0:01:36]} 25. f3 {[%clk 0:01:10]}  Rhc8 {[%clk 0:01:35]} 26. Rg1 {[%clk 0:01:07]}  Kf6 {[%clk 0:01:27]} 27. Rg4 {[%clk 0:00:56]}  Nb6 {[%clk 0:01:06]} 28. Bd2 {[%clk 0:00:52]}  Nd5 {[%clk 0:01:05]} 29. Be1 {[%clk 0:00:51]}  Ke7 {[%clk 0:00:53]} 30. Bh4+ {[%clk 0:00:47]}  Kf8 {[%clk 0:00:48]} 31. Rd2 {[%clk 0:00:32]}  f5 {[%clk 0:00:47]} 32. Rg5 {[%clk 0:00:28]}  Rg7 {[%clk 0:00:47]} 33. Rdg2 {[%clk 0:00:25]}  Rxg5 {[%clk 0:00:46]} 34. Bxg5 {[%clk 0:00:26]}  Nxc3+ {[%clk 0:00:35]} 35. Kb2 {[%clk 0:00:26]}  Nd1+ {[%clk 0:00:35]} 36. Kc1 {[%clk 0:00:20]}  Ne3 {[%clk 0:00:34]} 37. Bh6+ {[%clk 0:00:20]}  Kf7 {[%clk 0:00:34]} 38. Rg7+ {[%clk 0:00:20]}  Kf6 {[%clk 0:00:34]} 39. Rxb7 {[%clk 0:00:16]}  Rxc2+ {[%clk 0:00:34]} 40. Kb1 {[%clk 0:00:16]}  Kg6 {[%clk 0:00:18]} 41. Bg7 {[%clk 0:00:14]}  Rc5 {[%clk 0:00:17]} 42. Bh8 {[%clk 0:00:14]}  Rb5+ {[%clk 0:00:16]} 43. Kc1 {[%clk 0:00:12]}  Rxb7 {[%clk 0:00:16]} 0-1

[Event "December 12 Early 2023"]
[Site "https://www.chess.com"]
[Date "2023.12.12"]
[Round "11"]
[White "Donchenko, Anatoly"]
[Black "Spichkin, Alexander"]
[Result "0-1"]
[Board "99"]
[TimeControl "180+1"]
[WhiteFideId "4106091"]
[BlackFideId "4144074"]
[WhiteElo "2370"]
[BlackElo "2470"]
[WhiteTeam "GER"]
[BlackTeam "RUS"]
[WhiteClock "0:00:00"]
[BlackClock "0:01:53"]

1. Nf3 {[%clk 0:03:00]}  f5 {[%clk 0:02:59]} 2. d4 {[%clk 0:02:59]}  Nf6 {[%clk 0:02:59]} 3. g3 {[%clk 0:02:58]}  e6 {[%clk 0:02:59]} 4. Bg2 {[%clk 0:02:57]}  Be7 {[%clk 0:03:00]} 5. c4 {[%clk 0:02:57]}  d6 {[%clk 0:03:01]} 6. O-O {[%clk 0:02:54]}  O-O {[%clk 0:03:01]} 7. Nc3 {[%clk 0:02:53]}  a5 {[%clk 0:03:02]} 8. Qd3 {[%clk 0:02:52]}  Nc6 {[%clk 0:03:01]} 9. a3 {[%clk 0:02:51]}  e5 {[%clk 0:03:00]} 10. e4 {[%clk 0:02:44]}  Qe8 {[%clk 0:02:50]} 11. exf5 {[%clk 0:02:42]}  Qh5 {[%clk 0:02:49]} 12. dxe5 {[%clk 0:02:37]}  dxe5 {[%clk 0:02:48]} 13. Nd5 {[%clk 0:02:34]}  Bd8 {[%clk 0:02:48]} 14. Nh4 {[%clk 0:02:15]}  Nd4 {[%clk 0:02:47]} 15. Be3 {[%clk 0:02:06]}  c6 {[%clk 0:02:47]} 16. Nxf6+ {[%clk 0:02:04]}  Bxf6 {[%clk 0:02:46]} 17. Bxd4 {[%clk 0:02:02]}  exd4 {[%clk 0:02:46]} 18. Qf3 {[%clk 0:01:31]}  Qxf3 {[%clk 0:02:44]} 19. Nxf3 {[%clk 0:01:30]}  Bxf5 {[%clk 0:02:42]} 20. Rad1 {[%clk 0:01:29]}  Rad8 {[%clk 0:02:42]} 21. Rfe1 {[%clk 0:01:25]}  d3 {[%clk 0:02:42]} 22. b3 {[%clk 0:01:21]}  d2 {[%clk 0:02:39]} 23. Re2 {[%clk 0:01:18]}  Bc2 {[%clk 0:02:38]} 24. Rdxd2 {[%clk 0:01:16]}  Bxb3 {[%clk 0:02:38]} 25. c5 {[%clk 0:01:10]}  Bc3 {[%clk 0:02:33]} 26. Rd6 {[%clk 0:01:02]}  a4 {[%clk 0:02:26]} 27. Ng5 {[%clk 0:00:57]}  Bd4 {[%clk 0:02:20]} 28. Rxd8 {[%clk 0:00:43]}  Rxd8 {[%clk 0:02:19]} 29. Bh3 {[%clk 0:00:37]}  Bxc5 {[%clk 0:02:15]} 30. Be6+ {[%clk 0:00:34]}  Bxe6 {[%clk 0:02:15]} 31. Nxe6 {[%clk 0:00:32]}  Rd1+ {[%clk 0:02:16]} 32. Kg2 {[%clk 0:00:32]}  Bxa3 {[%clk 0:02:16]} 33. Ra2 {[%clk 0:00:27]}  Rd3 {[%clk 0:02:16]} 34. Nf4 {[%clk 0:00:24]}  Rb3 {[%clk 0:02:15]} 35. Rd2 {[%clk 0:00:20]}  b5 {[%clk 0:02:12]} 36. Rd7 {[%clk 0:00:18]}  Bc5 {[%clk 0:02:09]} 37. Ne6 {[%clk 0:00:17]}  Rb2 {[%clk 0:02:03]} 38. Nxc5 {[%clk 0:00:13]}  a3 {[%clk 0:02:03]} 39. Ra7 {[%clk 0:00:12]}  a2 {[%clk 0:02:04]} 40. Ne6 {[%clk 0:00:10]}  h5 {[%clk 0:01:56]} 41. Rxg7+ {[%clk 0:00:09]}  Kh8 {[%clk 0:01:56]} 42. Ra7 {[%clk 0:00:08]}  b4 {[%clk 0:01:57]} 43. Nc5 {[%clk 0:00:07]}  Rc2 {[%clk 0:01:56]} 44. Nb3 {[%clk 0:00:00]}  Rc3 {[%clk 0:01:53]} 0-1

[Event "December 12 Early 2023"]
[Site "https://www.chess.com"]
[Date "2023.12.12"]
[Round "11"]
[White "Baches Garcia, Guillermo"]
[Black "Zhuk, Valeriy"]
[Result "1/2-1/2"]
[Board "100"]
[TimeControl "180+1"]
[WhiteFideId "2209764"]
[BlackFideId "24151254"]
[WhiteElo "2469"]
[BlackElo "2375"]
[WhiteTeam "ESP"]
[BlackTeam "RUS"]
[WhiteClock "0:00:09"]
[BlackClock "0:00:09"]

1. d4 {[%clk 0:03:00]}  d5 {[%clk 0:02:59]} 2. Nf3 {[%clk 0:03:01]}  Nf6 {[%clk 0:02:59]} 3. Bg5 {[%clk 0:03:02]}  Ne4 {[%clk 0:02:58]} 4. Bf4 {[%clk 0:03:02]}  c5 {[%clk 0:02:59]} 5. dxc5 {[%clk 0:03:03]}  Nc6 {[%clk 0:02:51]} 6. e3 {[%clk 0:03:03]}  f6 {[%clk 0:02:49]} 7. Nbd2 {[%clk 0:03:02]}  e5 {[%clk 0:02:48]} 8. Bg3 {[%clk 0:03:02]}  Nxd2 {[%clk 0:02:29]} 9. Qxd2 {[%clk 0:03:02]}  Bxc5 {[%clk 0:02:30]} 10. Be2 {[%clk 0:02:57]}  Be6 {[%clk 0:02:27]} 11. O-O {[%clk 0:02:56]}  O-O {[%clk 0:02:27]} 12. Rfd1 {[%clk 0:02:53]}  Qb6 {[%clk 0:02:24]} 13. c3 {[%clk 0:02:47]}  Rfd8 {[%clk 0:02:24]} 14. b4 {[%clk 0:02:43]}  Bf8 {[%clk 0:02:23]} 15. a4 {[%clk 0:02:38]}  a5 {[%clk 0:02:22]} 16. b5 {[%clk 0:02:37]}  Na7 {[%clk 0:02:22]} 17. Rac1 {[%clk 0:02:22]}  Ba3 {[%clk 0:02:15]} 18. Ra1 {[%clk 0:02:20]}  Be7 {[%clk 0:02:15]} 19. Qb2 {[%clk 0:02:17]}  Nc8 {[%clk 0:02:15]} 20. Rac1 {[%clk 0:02:06]}  Nd6 {[%clk 0:02:14]} 21. Nd2 {[%clk 0:02:06]}  Rac8 {[%clk 0:02:06]} 22. Bf1 {[%clk 0:02:00]}  Nc4 {[%clk 0:01:31]} 23. Nxc4 {[%clk 0:01:53]}  dxc4 {[%clk 0:01:32]} 24. h3 {[%clk 0:01:49]}  Qc5 {[%clk 0:01:27]} 25. Be2 {[%clk 0:01:47]}  b6 {[%clk 0:01:21]} 26. Qc2 {[%clk 0:01:40]}  Bd5 {[%clk 0:01:17]} 27. Rd2 {[%clk 0:01:35]}  Bb7 {[%clk 0:01:11]} 28. Rcd1 {[%clk 0:01:28]}  Rxd2 {[%clk 0:00:51]} 29. Rxd2 {[%clk 0:01:24]}  g6 {[%clk 0:00:51]} 30. Rd7 {[%clk 0:01:15]}  Rc7 {[%clk 0:00:50]} 31. Qd2 {[%clk 0:01:05]}  Kg7 {[%clk 0:00:45]} 32. Bf1 {[%clk 0:00:52]}  Be4 {[%clk 0:00:45]} 33. h4 {[%clk 0:00:34]}  Bd3 {[%clk 0:00:36]} 34. Rxc7 {[%clk 0:00:23]}  Qxc7 {[%clk 0:00:37]} 35. f3 {[%clk 0:00:21]}  Bc5 {[%clk 0:00:19]} 36. Bf2 {[%clk 0:00:20]}  Qd6 {[%clk 0:00:16]} 37. e4 {[%clk 0:00:19]}  Bxf2+ {[%clk 0:00:14]} 38. Kxf2 {[%clk 0:00:19]}  Qc5+ {[%clk 0:00:12]} 39. Ke1 {[%clk 0:00:15]}  Bxf1 {[%clk 0:00:12]} 40. Kxf1 {[%clk 0:00:15]}  Qa3 {[%clk 0:00:13]} 41. Kg1 {[%clk 0:00:08]}  Qxa4 {[%clk 0:00:12]} 42. Qd5 {[%clk 0:00:08]}  Qa1+ {[%clk 0:00:10]} 43. Kh2 {[%clk 0:00:08]}  Qxc3 {[%clk 0:00:11]} 44. Qb7+ {[%clk 0:00:07]}  Kh6 {[%clk 0:00:10]} 45. Qxb6 {[%clk 0:00:07]}  a4 {[%clk 0:00:08]} 46. Qxf6 {[%clk 0:00:08]}  a3 {[%clk 0:00:08]} 47. Qg5+ {[%clk 0:00:08]}  Kg7 {[%clk 0:00:08]} 48. Qe7+ {[%clk 0:00:08]}  Kh6 {[%clk 0:00:09]} 49. Qg5+ {[%clk 0:00:09]}  Kg7 {[%clk 0:00:09]} 50. Qe7+ {[%clk 0:00:09]}  Kh6 {[%clk 0:00:09]} 51. Qg5+ {[%clk 0:00:09]} 1/2-1/2